[Event "*** Titled Tuesday Blitz"]
[Site "Chess.com"]
[Date "2020.05.05"]
[Round "3"]
[White "HonzaVykouk"]
[Black "MPGM"]
[Result "0-1"]
[WhiteElo "2702"]
[BlackElo "2505"]
[TimeControl "180+1"]
[EndTime "10:29:23 PDT"]
[Termination "MPGM won by checkmate"]

1. e4 {[%clk 0:03:00.9]} 1... c6 {[%clk 0:02:57.9]} 2. Nf3 {[%clk 0:03:00.4]}
2... d5 {[%clk 0:02:57.5]} 3. Nc3 {[%clk 0:03:01.1]} 3... Bg4 {[%clk 0:02:56.4]}
4. h3 {[%clk 0:03:01.7]} 4... Bh5 {[%clk 0:02:56.2]} 5. g4 {[%clk 0:03:01.5]}
5... Bg6 {[%clk 0:02:56.4]} 6. exd5 {[%clk 0:03:02.2]} 6... cxd5 {[%clk
0:02:56.1]} 7. Bb5+ {[%clk 0:03:02.9]} 7... Nc6 {[%clk 0:02:56.2]} 8. Ne5 {[%clk
0:03:03.7]} 8... Rc8 {[%clk 0:02:56.3]} 9. d4 {[%clk 0:03:03.5]} 9... e6 {[%clk
0:02:54]} 10. h4 {[%clk 0:03:03]} 10... f6 {[%clk 0:02:53.4]} 11. Nxg6 {[%clk
0:03:02.7]} 11... hxg6 {[%clk 0:02:54.3]} 12. a3 {[%clk 0:03:01.5]} 12... Bd6
{[%clk 0:02:51.4]} 13. Be3 {[%clk 0:02:57.7]} 13... Kf7 {[%clk 0:02:51]} 14. Qd2
{[%clk 0:02:57.4]} 14... Nge7 {[%clk 0:02:44.6]} 15. f4 {[%clk 0:02:53.3]} 15...
Na5 {[%clk 0:02:34.8]} 16. O-O-O {[%clk 0:02:50.6]} 16... Nc4 {[%clk 0:02:33.3]}
17. Bxc4 {[%clk 0:02:50.4]} 17... Rxc4 {[%clk 0:02:33.5]} 18. Rdg1 {[%clk
0:02:41.1]} 18... Qa5 {[%clk 0:02:25.1]} 19. Nb1 {[%clk 0:02:20.4]} 19... Qc7
{[%clk 0:02:09.6]} 20. c3 {[%clk 0:02:11.2]} 20... Rc6 {[%clk 0:01:34.9]} 21.
Qf2 {[%clk 0:01:39.2]} 21... b5 {[%clk 0:01:26.9]} 22. h5 {[%clk 0:01:23.4]}
22... gxh5 {[%clk 0:01:26.6]} 23. f5 {[%clk 0:01:23.7]} 23... exf5 {[%clk
0:01:15.2]} 24. gxf5 {[%clk 0:01:23.7]} 24... Qc8 {[%clk 0:00:54.6]} 25. Rf1
{[%clk 0:01:17.1]} 25... a5 {[%clk 0:00:38.8]} 26. Qf3 {[%clk 0:01:13.2]} 26...
h4 {[%clk 0:00:37]} 27. Qg4 {[%clk 0:01:10.8]} 27... Bg3 {[%clk 0:00:34.3]} 28.
Rf3 {[%clk 0:00:43.1]} 28... b4 {[%clk 0:00:32.5]} 29. axb4 {[%clk 0:00:42.5]}
29... axb4 {[%clk 0:00:32.5]} 30. Bf2 {[%clk 0:00:41.8]} 30... bxc3 {[%clk
0:00:30.9]} 31. bxc3 {[%clk 0:00:41.1]} 31... Bxf2 {[%clk 0:00:30.2]} 32. Rxf2
{[%clk 0:00:38]} 32... Rxc3+ {[%clk 0:00:30.1]} 33. Nxc3 {[%clk 0:00:36.8]}
33... Qxc3+ {[%clk 0:00:31]} 34. Rc2 {[%clk 0:00:35.3]} 34... Qe3+ {[%clk
0:00:31.1]} 35. Kd1 {[%clk 0:00:35.3]} 35... Ra8 {[%clk 0:00:30]} 36. Rc7 {[%clk
0:00:18.6]} 36... Ra1+ {[%clk 0:00:27.5]} 37. Kc2 {[%clk 0:00:18.4]} 37... Ra2+
{[%clk 0:00:27.8]} 38. Kb1 {[%clk 0:00:15.4]} 38... Qb3+ {[%clk 0:00:27.5]} 39.
Kc1 {[%clk 0:00:15.9]} 39... Qb2+ {[%clk 0:00:25.7]} 40. Kd1 {[%clk 0:00:16.5]}
40... Qd2# {[%clk 0:00:26.1]} 0-1

[Event "*** Titled Tuesday Blitz"]
[Site "Chess.com"]
[Date "2020.05.05"]
[Round "3"]
[White "Kensei26"]
[Black "ZEN-22"]
[Result "0-1"]
[WhiteElo "2157"]
[BlackElo "2355"]
[TimeControl "180+1"]
[EndTime "10:29:23 PDT"]
[Termination "ZEN-22 won on time"]

1. e4 {[%clk 0:03:00.9]} 1... e5 {[%clk 0:02:59.6]} 2. Nf3 {[%clk 0:03:00.5]}
2... d5 {[%clk 0:02:59.5]} 3. Nxe5 {[%clk 0:02:51.9]} 3... Bd6 {[%clk
0:02:57.6]} 4. d4 {[%clk 0:02:51.5]} 4... dxe4 {[%clk 0:02:57.1]} 5. Bc4 {[%clk
0:02:43.8]} 5... Bxe5 {[%clk 0:02:56.5]} 6. Qh5 {[%clk 0:02:39.9]} 6... Qe7
{[%clk 0:02:54.4]} 7. Qxe5 {[%clk 0:02:38.8]} 7... Qxe5 {[%clk 0:02:53.1]} 8.
dxe5 {[%clk 0:02:39.7]} 8... Nc6 {[%clk 0:02:53.3]} 9. Bf4 {[%clk 0:02:21.8]}
9... Nge7 {[%clk 0:02:52.7]} 10. Bg3 {[%clk 0:01:41.8]} 10... Nf5 {[%clk
0:02:45.5]} 11. Nc3 {[%clk 0:01:38.6]} 11... Nxg3 {[%clk 0:02:43.7]} 12. hxg3
{[%clk 0:01:37.7]} 12... Nxe5 {[%clk 0:02:42.9]} 13. Bb5+ {[%clk 0:01:30.9]}
13... c6 {[%clk 0:02:42.6]} 14. Ba4 {[%clk 0:01:11.4]} 14... Bf5 {[%clk
0:02:40.1]} 15. O-O-O {[%clk 0:01:09.7]} 15... Rd8 {[%clk 0:02:37.9]} 16. Rde1
{[%clk 0:01:09]} 16... Rd4 {[%clk 0:02:36.6]} 17. Rh4 {[%clk 0:00:57.3]} 17...
O-O {[%clk 0:02:26.8]} 18. Nxe4 {[%clk 0:00:45.5]} 18... Rfd8 {[%clk 0:02:08.8]}
19. Bb3 {[%clk 0:00:30.3]} 19... Ng6 {[%clk 0:01:41.8]} 20. c3 {[%clk
0:00:21.4]} 20... Nxh4 {[%clk 0:01:37.1]} 21. cxd4 {[%clk 0:00:21.2]} 21... Nxg2
{[%clk 0:01:36.7]} 22. Re2 {[%clk 0:00:17.6]} 22... Rxd4 {[%clk 0:01:33.5]} 23.
Nd6 {[%clk 0:00:17.1]} 23... Be6 {[%clk 0:01:08.5]} 24. Bxe6 {[%clk 0:00:16.6]}
24... fxe6 {[%clk 0:01:08]} 25. Rxe6 {[%clk 0:00:17.5]} 25... g6 {[%clk
0:01:07.5]} 26. Nxb7 {[%clk 0:00:17]} 26... Kf7 {[%clk 0:01:01.5]} 27. Rxc6
{[%clk 0:00:15]} 27... Rd5 {[%clk 0:01:01.1]} 28. Nd6+ {[%clk 0:00:14.6]} 28...
Ke7 {[%clk 0:00:58.5]} 29. Ne4 {[%clk 0:00:14.2]} 29... Re5 {[%clk 0:00:57.5]}
30. f3 {[%clk 0:00:13.8]} 30... Ne1 {[%clk 0:00:56.2]} 31. Rc7+ {[%clk
0:00:13.8]} 31... Kd8 {[%clk 0:00:55.7]} 32. Rxa7 {[%clk 0:00:13.9]} 32... Nxf3
{[%clk 0:00:56.1]} 33. Nf6 {[%clk 0:00:13.8]} 33... h5 {[%clk 0:00:54.3]} 34.
Rg7 {[%clk 0:00:10.5]} 34... Rc5+ {[%clk 0:00:53.7]} 35. Kd1 {[%clk 0:00:10.2]}
35... Ne5 {[%clk 0:00:52.8]} 36. Rh7 {[%clk 0:00:08]} 36... Rc6 {[%clk
0:00:52.7]} 37. Nxh5 {[%clk 0:00:07.8]} 37... gxh5 {[%clk 0:00:50.1]} 38. Rxh5
{[%clk 0:00:08.7]} 38... Rd6+ {[%clk 0:00:50.5]} 39. Kc2 {[%clk 0:00:08.4]}
39... Nd3 {[%clk 0:00:51.4]} 40. Rh8+ {[%clk 0:00:07.6]} 40... Kc7 {[%clk
0:00:50.7]} 41. a3 {[%clk 0:00:08.1]} 41... Ne1+ {[%clk 0:00:49.3]} 42. Kb3
{[%clk 0:00:07.9]} 42... Rd3+ {[%clk 0:00:49.8]} 43. Ka2 {[%clk 0:00:07.6]}
43... Rd7 {[%clk 0:00:50.7]} 44. Rh2 {[%clk 0:00:07.2]} 44... Nd3 {[%clk
0:00:50.3]} 45. Rc2+ {[%clk 0:00:06.5]} 45... Kb6 {[%clk 0:00:50.4]} 46. Rc3
{[%clk 0:00:06.9]} 46... Nc5 {[%clk 0:00:49.9]} 47. b4 {[%clk 0:00:06.5]} 47...
Na4 {[%clk 0:00:50]} 48. Kb3 {[%clk 0:00:05.6]} 48... Nxc3 {[%clk 0:00:49.4]}
49. Kxc3 {[%clk 0:00:05.7]} 49... Rg7 {[%clk 0:00:50.2]} 0-1

[Event "*** Titled Tuesday Blitz"]
[Site "Chess.com"]
[Date "2020.05.05"]
[Round "3"]
[White "SketchyMoves"]
[Black "zmeeed67"]
[Result "1-0"]
[WhiteElo "2615"]
[BlackElo "2396"]
[TimeControl "180+1"]
[EndTime "10:29:24 PDT"]
[Termination "SketchyMoves won by resignation"]

1. b3 {[%clk 0:03:00.9]} 1... d5 {[%clk 0:02:57]} 2. Bb2 {[%clk 0:03:00.8]} 2...
c5 {[%clk 0:02:56.1]} 3. Nf3 {[%clk 0:03:00.4]} 3... Nf6 {[%clk 0:02:56.3]} 4.
e3 {[%clk 0:03:00.2]} 4... g6 {[%clk 0:02:56.8]} 5. Bb5+ {[%clk 0:02:58.9]} 5...
Bd7 {[%clk 0:02:55.5]} 6. Bxd7+ {[%clk 0:02:58.7]} 6... Nbxd7 {[%clk 0:02:53.9]}
7. O-O {[%clk 0:02:58.8]} 7... Bg7 {[%clk 0:02:53.8]} 8. c4 {[%clk 0:02:58]}
8... dxc4 {[%clk 0:02:47.7]} 9. bxc4 {[%clk 0:02:57.6]} 9... O-O {[%clk
0:02:48.1]} 10. d3 {[%clk 0:02:56.4]} 10... Nb8 {[%clk 0:02:21.9]} 11. Nc3
{[%clk 0:02:51.5]} 11... Nc6 {[%clk 0:02:22]} 12. a3 {[%clk 0:02:51]} 12... e6
{[%clk 0:02:20.8]} 13. Qc2 {[%clk 0:02:50.3]} 13... Qe7 {[%clk 0:02:11.6]} 14.
Rab1 {[%clk 0:02:49.4]} 14... Rfd8 {[%clk 0:02:09.9]} 15. Rfd1 {[%clk
0:02:49.7]} 15... Rd7 {[%clk 0:02:06.6]} 16. Nd2 {[%clk 0:02:46.9]} 16... Rad8
{[%clk 0:02:03.8]} 17. Nde4 {[%clk 0:02:47.2]} 17... Ng4 {[%clk 0:01:34.1]} 18.
Na4 {[%clk 0:02:36.8]} 18... Bxb2 {[%clk 0:01:21.4]} 19. Qxb2 {[%clk 0:02:35.6]}
19... b6 {[%clk 0:01:01.9]} 20. h3 {[%clk 0:02:27.3]} 20... Nge5 {[%clk
0:01:01.8]} 21. f4 {[%clk 0:02:24.6]} 21... Nxd3 {[%clk 0:01:00.7]} 22. Nf6+
{[%clk 0:02:21]} 22... Kh8 {[%clk 0:00:52.7]} 23. Rxd3 {[%clk 0:02:18.3]} 23...
Rxd3 {[%clk 0:00:45.4]} 24. Nd5+ {[%clk 0:02:18.2]} 24... Kg8 {[%clk 0:00:43.1]}
25. Nxe7+ {[%clk 0:02:18.1]} 25... Nxe7 {[%clk 0:00:44]} 26. Nc3 {[%clk
0:02:08.8]} 26... Rxe3 {[%clk 0:00:39.5]} 27. Kf1 {[%clk 0:01:40.5]} 27... Nf5
{[%clk 0:00:32.3]} 28. Re1 {[%clk 0:01:34.9]} 28... Red3 {[%clk 0:00:22.1]} 29.
Ne4 {[%clk 0:01:30.7]} 29... h5 {[%clk 0:00:20]} 30. Qf6 {[%clk 0:01:24]} 30...
R8d4 {[%clk 0:00:14.9]} 31. Qe5 {[%clk 0:01:17.1]} 31... Ne3+ {[%clk 0:00:10.6]}
32. Rxe3 {[%clk 0:01:15.1]} 32... Rxe3 {[%clk 0:00:09.9]} 33. Nf6+ {[%clk
0:01:14.9]} 33... Kg7 {[%clk 0:00:10.8]} 34. Nxh5+ {[%clk 0:01:11.5]} 34... Kf8
{[%clk 0:00:09.2]} 35. Qxe3 {[%clk 0:01:07.9]} 35... gxh5 {[%clk 0:00:10.1]} 36.
Qe5 {[%clk 0:01:01.8]} 36... Rxc4 {[%clk 0:00:09.9]} 37. Qxh5 {[%clk 0:01:01]}
37... Rxf4+ {[%clk 0:00:09.4]} 38. Ke2 {[%clk 0:01:00.4]} 38... Re4+ {[%clk
0:00:09.7]} 39. Kd3 {[%clk 0:00:59.8]} 39... Ra4 {[%clk 0:00:08.6]} 40. Qh6+
{[%clk 0:00:56]} 40... Ke7 {[%clk 0:00:08.5]} 41. Qc1 {[%clk 0:00:53.7]} 41...
Rd4+ {[%clk 0:00:07.7]} 42. Ke2 {[%clk 0:00:53.2]} 42... Re4+ {[%clk 0:00:06.8]}
43. Kf3 {[%clk 0:00:53.3]} 43... Rd4 {[%clk 0:00:06.4]} 44. h4 {[%clk
0:00:52.7]} 44... c4 {[%clk 0:00:06.7]} 45. h5 {[%clk 0:00:51.1]} 45... b5
{[%clk 0:00:04.9]} 46. h6 {[%clk 0:00:50.9]} 46... Rd3+ {[%clk 0:00:03.6]} 47.
Ke2 {[%clk 0:00:50]} 47... e5 {[%clk 0:00:03.9]} 48. h7 {[%clk 0:00:49.1]} 48...
Rd8 {[%clk 0:00:03.6]} 49. Qg5+ {[%clk 0:00:47.7]} 1-0

[Event "*** Titled Tuesday Blitz"]
[Site "Chess.com"]
[Date "2020.05.05"]
[Round "3"]
[White "EvgenyRomanov"]
[Black "eljanov"]
[Result "0-1"]
[WhiteElo "2643"]
[BlackElo "2943"]
[TimeControl "180+1"]
[EndTime "10:29:25 PDT"]
[Termination "eljanov won on time"]

1. d4 {[%clk 0:03:00.9]} 1... Nf6 {[%clk 0:02:58.8]} 2. Nf3 {[%clk 0:03:01.8]}
2... e6 {[%clk 0:02:58.6]} 3. Bg5 {[%clk 0:03:01.8]} 3... d5 {[%clk 0:02:56.2]}
4. e3 {[%clk 0:03:00.6]} 4... c5 {[%clk 0:02:53.6]} 5. Nbd2 {[%clk 0:02:59.6]}
5... Nbd7 {[%clk 0:02:49.8]} 6. c3 {[%clk 0:02:59]} 6... Bd6 {[%clk 0:02:47.2]}
7. Bd3 {[%clk 0:02:58.3]} 7... O-O {[%clk 0:02:40.2]} 8. O-O {[%clk 0:02:57.8]}
8... h6 {[%clk 0:02:39.8]} 9. Bh4 {[%clk 0:02:56.8]} 9... b6 {[%clk 0:02:36.7]}
10. a4 {[%clk 0:02:53.7]} 10... Bb7 {[%clk 0:02:32.4]} 11. a5 {[%clk 0:02:51]}
11... e5 {[%clk 0:02:12.1]} 12. dxe5 {[%clk 0:02:40.2]} 12... Nxe5 {[%clk
0:02:12.1]} 13. Nxe5 {[%clk 0:02:40.9]} 13... Bxe5 {[%clk 0:02:11.9]} 14. Nf3
{[%clk 0:02:30.9]} 14... Bc7 {[%clk 0:02:06.7]} 15. a6 {[%clk 0:02:17.4]} 15...
Bc6 {[%clk 0:02:04.5]} 16. b4 {[%clk 0:02:17.8]} 16... Rb8 {[%clk 0:01:56.4]}
17. b5 {[%clk 0:02:03]} 17... Ba8 {[%clk 0:01:55.2]} 18. c4 {[%clk 0:01:59.2]}
18... Qd6 {[%clk 0:01:20.5]} 19. Bg3 {[%clk 0:01:42.7]} 19... Qe7 {[%clk
0:01:19.9]} 20. Bh4 {[%clk 0:01:14.5]} 20... Rbd8 {[%clk 0:01:16.4]} 21. Qe2
{[%clk 0:01:13.6]} 21... g5 {[%clk 0:01:06.2]} 22. Bg3 {[%clk 0:01:10.1]} 22...
Bxg3 {[%clk 0:00:52.9]} 23. hxg3 {[%clk 0:01:08.7]} 23... Ne4 {[%clk 0:00:50.9]}
24. Rac1 {[%clk 0:00:28.8]} 24... Rd6 {[%clk 0:00:49.8]} 25. Rfd1 {[%clk
0:00:26.8]} 25... Rfd8 {[%clk 0:00:49.7]} 26. Bxe4 {[%clk 0:00:23.6]} 26... Qxe4
{[%clk 0:00:45.7]} 27. Nd2 {[%clk 0:00:21.2]} 27... Qe6 {[%clk 0:00:42.5]} 28.
cxd5 {[%clk 0:00:16.4]} 28... Rxd5 {[%clk 0:00:40]} 29. f3 {[%clk 0:00:14.9]}
29... Qd7 {[%clk 0:00:36.2]} 30. Rc2 {[%clk 0:00:14.8]} 30... Rd3 {[%clk
0:00:25.3]} 31. Kf2 {[%clk 0:00:14.3]} 31... c4 {[%clk 0:00:24.1]} 32. g4 {[%clk
0:00:03.5]} 32... c3 {[%clk 0:00:22.8]} 33. Rxc3 {[%clk 0:00:02.4]} 33... Rxc3
{[%clk 0:00:22]} 34. Ne4 {[%clk 0:00:02.9]} 34... Qxd1 {[%clk 0:00:21.6]} 0-1

[Event "*** Titled Tuesday Blitz"]
[Site "Chess.com"]
[Date "2020.05.05"]
[Round "3"]
[White "Eloist"]
[Black "powermove"]
[Result "1-0"]
[WhiteElo "2243"]
[BlackElo "1637"]
[TimeControl "180+1"]
[EndTime "10:29:26 PDT"]
[Termination "Eloist won on time"]

1. e4 {[%clk 0:03:00.9]} 1... e5 {[%clk 0:02:59.4]} 2. Bc4 {[%clk 0:03:00]} 2...
Nc6 {[%clk 0:02:59]} 3. Nf3 {[%clk 0:02:59.3]} 3... Nf6 {[%clk 0:02:58.4]} 4. d3
{[%clk 0:02:59]} 4... Bc5 {[%clk 0:02:57.3]} 5. O-O {[%clk 0:02:57.8]} 5... d6
{[%clk 0:02:55.8]} 6. c3 {[%clk 0:02:57]} 6... a6 {[%clk 0:02:55.1]} 7. Bb3
{[%clk 0:02:56.3]} 7... Ba7 {[%clk 0:02:54.4]} 8. Nbd2 {[%clk 0:02:55.5]} 8...
O-O {[%clk 0:02:51.5]} 9. h3 {[%clk 0:02:53.5]} 9... Qe7 {[%clk 0:02:32.7]} 10.
Re1 {[%clk 0:02:51.7]} 10... Nd8 {[%clk 0:02:32]} 11. d4 {[%clk 0:02:44.2]}
11... Nh5 {[%clk 0:02:16.4]} 12. Nc4 {[%clk 0:02:29.7]} 12... Nf4 {[%clk
0:01:52.5]} 13. dxe5 {[%clk 0:02:12.9]} 13... dxe5 {[%clk 0:01:49.7]} 14. Ncxe5
{[%clk 0:02:09.2]} 14... Nde6 {[%clk 0:01:32.6]} 15. Be3 {[%clk 0:01:52.4]}
15... Qf6 {[%clk 0:01:03.3]} 16. Ng4 {[%clk 0:01:40.5]} 16... Qg6 {[%clk
0:00:53.1]} 17. Nh4 {[%clk 0:01:31.3]} 17... Qh5 {[%clk 0:00:41]} 18. Bxe6
{[%clk 0:00:56.2]} 18... Bxe6 {[%clk 0:00:26.1]} 19. Bxf4 {[%clk 0:00:45.1]}
19... Qxh4 {[%clk 0:00:23.2]} 20. Be3 {[%clk 0:00:40.9]} 20... Bxg4 {[%clk
0:00:15.6]} 21. Qxg4 {[%clk 0:00:39.9]} 21... Qxg4 {[%clk 0:00:14.9]} 22. hxg4
{[%clk 0:00:40.8]} 22... Bxe3 {[%clk 0:00:14.7]} 23. Rxe3 {[%clk 0:00:40]} 23...
Rad8 {[%clk 0:00:14.2]} 24. Rae1 {[%clk 0:00:38.6]} 24... Rd2 {[%clk 0:00:13.5]}
25. R3e2 {[%clk 0:00:38.3]} 25... Rfd8 {[%clk 0:00:13.2]} 26. f4 {[%clk
0:00:38.1]} 26... Kf8 {[%clk 0:00:12.9]} 27. Kf2 {[%clk 0:00:37.8]} 27... Ke7
{[%clk 0:00:12.6]} 28. g5 {[%clk 0:00:37.7]} 28... R8d3 {[%clk 0:00:07.5]} 29.
Rxd2 {[%clk 0:00:36.1]} 29... Rxd2+ {[%clk 0:00:07]} 30. Re2 {[%clk 0:00:36.5]}
30... Rd1 {[%clk 0:00:07]} 31. Ke3 {[%clk 0:00:27.1]} 31... a5 {[%clk
0:00:05.3]} 32. g3 {[%clk 0:00:25]} 32... Rg1 {[%clk 0:00:04.3]} 33. Kf3 {[%clk
0:00:24.2]} 33... Rd1 {[%clk 0:00:04]} 34. Rh2 {[%clk 0:00:22.6]} 1-0

[Event "*** Titled Tuesday Blitz"]
[Site "Chess.com"]
[Date "2020.05.05"]
[Round "3"]
[White "K_A_S_T_O_R"]
[Black "zubridis"]
[Result "1-0"]
[WhiteElo "2780"]
[BlackElo "2448"]
[TimeControl "180+1"]
[EndTime "10:29:27 PDT"]
[Termination "K_A_S_T_O_R won on time"]

1. e4 {[%clk 0:03:00.9]} 1... c5 {[%clk 0:02:57.3]} 2. Nf3 {[%clk 0:03:00.8]}
2... Nc6 {[%clk 0:02:57.7]} 3. d4 {[%clk 0:03:01]} 3... cxd4 {[%clk 0:02:58.2]}
4. Nxd4 {[%clk 0:03:01.6]} 4... Nf6 {[%clk 0:02:58.7]} 5. Nc3 {[%clk 0:03:01.2]}
5... d6 {[%clk 0:02:59.2]} 6. Bg5 {[%clk 0:02:59.6]} 6... Bd7 {[%clk 0:02:58]}
7. Qd2 {[%clk 0:02:59.6]} 7... e6 {[%clk 0:02:54.1]} 8. Ndb5 {[%clk 0:02:50.9]}
8... Qa5 {[%clk 0:02:07.5]} 9. Bxf6 {[%clk 0:02:29.4]} 9... gxf6 {[%clk
0:02:06.4]} 10. Nxd6+ {[%clk 0:02:07.2]} 10... Bxd6 {[%clk 0:02:07.3]} 11. Qxd6
{[%clk 0:02:07.2]} 11... O-O-O {[%clk 0:01:37]} 12. O-O-O {[%clk 0:01:56.9]}
12... Rhg8 {[%clk 0:01:15.4]} 13. Qf4 {[%clk 0:01:52.3]} 13... Qg5 {[%clk
0:00:57.1]} 14. Qxg5 {[%clk 0:01:46.8]} 14... fxg5 {[%clk 0:00:57.1]} 15. f3
{[%clk 0:01:43.8]} 15... Ne5 {[%clk 0:00:48.6]} 16. h4 {[%clk 0:01:41.1]} 16...
h6 {[%clk 0:00:47.3]} 17. hxg5 {[%clk 0:01:40.7]} 17... hxg5 {[%clk 0:00:44.7]}
18. Bb5 {[%clk 0:01:35.4]} 18... a6 {[%clk 0:00:36.8]} 19. Bxd7+ {[%clk
0:01:34.5]} 19... Rxd7 {[%clk 0:00:37.2]} 20. Rxd7 {[%clk 0:01:33.8]} 20... Kxd7
{[%clk 0:00:37.3]} 21. b3 {[%clk 0:01:34.3]} 21... b5 {[%clk 0:00:33]} 22. a3
{[%clk 0:01:32.3]} 22... Ng6 {[%clk 0:00:11.8]} 23. Kd2 {[%clk 0:01:31.5]} 23...
Nf4 {[%clk 0:00:11.1]} 24. g3 {[%clk 0:01:29.4]} 24... Ng6 {[%clk 0:00:11.1]}
25. Ne2 {[%clk 0:01:29.3]} 25... Ke7 {[%clk 0:00:09.9]} 26. Nd4 {[%clk
0:01:28.2]} 26... Rd8 {[%clk 0:00:07.6]} 27. Ke3 {[%clk 0:01:27.5]} 27... Rc8
{[%clk 0:00:08.1]} 28. Rh5 {[%clk 0:01:26.2]} 28... Kf6 {[%clk 0:00:04.4]} 29.
Kd3 {[%clk 0:01:11.4]} 29... Rd8 {[%clk 0:00:04.2]} 30. Kc3 {[%clk 0:01:08.9]}
30... Rc8+ {[%clk 0:00:04.3]} 31. Kb2 {[%clk 0:01:08.2]} 31... Ne5 {[%clk
0:00:03.4]} 32. Rh6+ {[%clk 0:01:02.6]} 32... Kg7 {[%clk 0:00:02.8]} 33. Rh5
{[%clk 0:01:02.3]} 33... Kf6 {[%clk 0:00:01.8]} 34. Rh1 {[%clk 0:00:59.1]} 34...
Ng6 {[%clk 0:00:01.5]} 35. c3 {[%clk 0:00:58.7]} 35... Ne5 {[%clk 0:00:01.9]}
36. f4 {[%clk 0:00:56.5]} 36... Nd3+ {[%clk 0:00:02.1]} 37. Kc2 {[%clk
0:00:55.7]} 37... Nc5 {[%clk 0:00:02.3]} 38. e5+ {[%clk 0:00:55.3]} 38... Kg6
{[%clk 0:00:02.5]} 39. Re1 {[%clk 0:00:53.1]} 39... gxf4 {[%clk 0:00:02.6]} 40.
gxf4 {[%clk 0:00:54]} 40... a5 {[%clk 0:00:02.6]} 41. Rg1+ {[%clk 0:00:51.4]}
41... Kh7 {[%clk 0:00:02.6]} 42. Nxb5 {[%clk 0:00:50.9]} 42... a4 {[%clk
0:00:02.5]} 43. b4 {[%clk 0:00:50.2]} 43... Ne4 {[%clk 0:00:02.8]} 44. Rg2
{[%clk 0:00:50.2]} 44... Kh6 {[%clk 0:00:02.2]} 45. Kd3 {[%clk 0:00:49.9]} 1-0

[Event "*** Titled Tuesday Blitz"]
[Site "Chess.com"]
[Date "2020.05.05"]
[Round "3"]
[White "Dumbo32"]
[Black "RubensCezila"]
[Result "1-0"]
[WhiteElo "2347"]
[BlackElo "2468"]
[TimeControl "180+1"]
[EndTime "10:29:27 PDT"]
[Termination "Dumbo32 won by resignation"]

1. e4 {[%clk 0:03:00.9]} 1... c6 {[%clk 0:02:59.5]} 2. d4 {[%clk 0:03:00.3]}
2... d5 {[%clk 0:02:59.8]} 3. Nc3 {[%clk 0:03:00.1]} 3... dxe4 {[%clk
0:02:59.7]} 4. Nxe4 {[%clk 0:02:59.9]} 4... Nf6 {[%clk 0:03:00.2]} 5. Nxf6+
{[%clk 0:02:59.3]} 5... exf6 {[%clk 0:03:01.1]} 6. Ne2 {[%clk 0:02:57.3]} 6...
Bd6 {[%clk 0:03:00.9]} 7. Ng3 {[%clk 0:02:56.7]} 7... O-O {[%clk 0:03:00.5]} 8.
Be2 {[%clk 0:02:56.5]} 8... Re8 {[%clk 0:03:00.5]} 9. O-O {[%clk 0:02:56.2]}
9... Nd7 {[%clk 0:03:00.7]} 10. c4 {[%clk 0:02:53.6]} 10... Nf8 {[%clk
0:03:00.7]} 11. b3 {[%clk 0:02:52.5]} 11... Ng6 {[%clk 0:02:55.2]} 12. Bb2
{[%clk 0:02:50.9]} 12... Nf4 {[%clk 0:02:54.2]} 13. Bf3 {[%clk 0:02:50.5]} 13...
a5 {[%clk 0:02:54]} 14. a3 {[%clk 0:02:49.4]} 14... Qc7 {[%clk 0:02:43.4]} 15.
Qd2 {[%clk 0:02:47.3]} 15... Bd7 {[%clk 0:02:42.8]} 16. Rfe1 {[%clk 0:02:33.6]}
16... Ng6 {[%clk 0:02:22.9]} 17. Rxe8+ {[%clk 0:02:15.3]} 17... Rxe8 {[%clk
0:02:21.7]} 18. Re1 {[%clk 0:02:15.5]} 18... Nh4 {[%clk 0:02:15.3]} 19. Bd1
{[%clk 0:01:55.8]} 19... c5 {[%clk 0:01:54.4]} 20. dxc5 {[%clk 0:01:37.6]} 20...
Bxc5 {[%clk 0:01:50.8]} 21. Ne4 {[%clk 0:01:36.7]} 21... Bf8 {[%clk 0:01:33.1]}
22. Bxf6 {[%clk 0:01:30.2]} 22... Rxe4 {[%clk 0:01:32.8]} 23. Rxe4 {[%clk
0:01:28.9]} 23... Nxg2 {[%clk 0:01:24.9]} 24. Bb2 {[%clk 0:01:09.6]} 24... Bf5
{[%clk 0:01:14.9]} 25. Re5 {[%clk 0:00:53.7]} 25... Nh4 {[%clk 0:00:52.9]} 26.
Qf4 {[%clk 0:00:44.9]} 26... Qd8 {[%clk 0:00:51.5]} 27. Rd5 {[%clk 0:00:37.3]}
27... Qe7 {[%clk 0:00:49.1]} 28. Re5 {[%clk 0:00:24.4]} 28... Qd8 {[%clk
0:00:48.9]} 29. Be2 {[%clk 0:00:23]} 29... Bg6 {[%clk 0:00:31.3]} 30. Rg5 {[%clk
0:00:20.9]} 30... Be7 {[%clk 0:00:18.1]} 31. Rd5 {[%clk 0:00:18.3]} 31... Qc8
{[%clk 0:00:18.3]} 32. Qd4 {[%clk 0:00:13.7]} 32... Bf6 {[%clk 0:00:16.4]} 33.
Qd2 {[%clk 0:00:13.1]} 33... Qe8 {[%clk 0:00:15.1]} 34. Bxf6 {[%clk 0:00:11.2]}
1-0